Cogmind - Beta 14 @@@ ROGUE MODE // 2024.12.19 @ 18:02:09 Player: N.W.L Result: Destroyed by SX-WJ4(R) with Subdweller Machine Gun Performance ------------- Evolutions (0) 0 Regions Visited (2) 400 Robots Destroyed (42) 210 Value Destroyed (900) 900 Prototype IDs (11) 220 Alien Tech Used (0) 0 Bonus (0) 0 TOTAL SCORE: 1730 Bonus ------- None Cogmind --------- Core Integrity 0/250 Matter 290/300 Energy 200/250 System Corruption 0% Temperature Warm (134) Movement Treading (240) Ox1 Location -10/Subcaves Parts ------- > --- POWER (1) -------- Ion Engine > --- PROPULSION (2) --- Light Treads > --- UTILITY (2) ------ (None) > --- WEAPON (2) ------- Subdweller Beam Cannon Subdweller Beam Cannon > --- INVENTORY (5) ---- Subdweller Beam Cannon Subdweller Beam Cannon Battle Cannon Shrapnel Trap Peak State ------------ > --- POWER ------------ Ion Engine > --- PROPULSION ------- Light Treads Light Treads > --- UTILITY ---------- Scrap Shield Tower Shield > --- WEAPON ----------- Subdweller Beam Cannon Subdweller Beam Cannon Hammer > --- INVENTORY -------- Subdweller Beam Cannon Battle Cannon Shrapnel Trap Piercing Trap [Rating: 32] Favorites ----------- Power Ion Engine Engine Ion Engine Propulsion Light Treads Treads Light Treads Utility Seismic Detector Device Seismic Detector Storage Small Storage Unit Protection Light Armor Plating Weapon Subdweller Beam Cannon Energy Gun Beam Rifle Energy Cannon Subdweller Beam Cannon Ballistic Gun Assault Rifle Ballistic Cannon Battle Cannon Impact Weapon Hammer Build | -11 -10 -10 ------- Run | Yrd Mat Sub Slots Evolved . | . . . Power . | . . . Propulsion . | . . . Utility . | . . . Weapon . | . . . Parts Attached 37 | 7 11 19 Power 4 | 1 3 . Engine 4 | 1 3 . Core . | . . . Reactor . | . . . Propulsion 4 | 2 . 2 Treads 4 | 2 . 2 Leg . | . . . Wheel . | . . . Hover . | . . . Flight . | . . . Utility 11 | 2 3 6 Device 2 | 1 1 . Storage 2 | 1 1 . Processor . | . . . Hackware . | . . . Protection 7 | . 1 6 Artifact . | . . . Weapon 18 | 2 5 11 Energy Gun 5 | 2 . 3 Energy Cannon 4 | . . 4 Ballistic Gun 5 | . 4 1 Ballistic Cannon 1 | . . 1 Launcher . | . . . Special Weapon . | . . . Impact Weapon 3 | . 1 2 Slashing Weapon . | . . . Piercing Weapon . | . . . Special Melee Weapon . | . . . Unidentified Prototypes . | . . . Parts Lost 3 | . . 3 Power . | . . . Propulsion 2 | . . 2 Utility 1 | . . 1 Weapon . | . . . Highest Loss Streak 2 | . . 2 To Critical Strikes . | . . . Average Slot Usage (%) 91 | . 100 87 Engine 12 | . 14 12 Treads 25 | . 28 23 Device 9 | . 9 9 Storage 4 | . 14 . Protection 10 | . 4 13 Energy Gun 4 | . 5 4 Energy Cannon 10 | . . 15 Ballistic Gun 6 | . 16 1 Ballistic Cannon 1 | . . 1 Impact Weapon 3 | . 6 2 Peak Build Rating 32 | 7 8 32 Average Rating 12 | 5 7 15 On Entrance 5 | . 7 8 Naked Turns . | . . . Heaviest Build 79 | 13 30 79 Greatest Support 40 | 40 40 40 Greatest Overweight (x) 1 | 1 . 1 Average Overweight (x) . | . . . Largest Inventory Capacity 15 | 8 15 15 Average Capacity 6 | 7 9 5 Most Carried 15 | 4 14 15 Average Carried 5 | 1 8 4 Final Capacity 15 | 8 15 5 Final Carried 14 | 4 14 4 Class Distribution -------------------- 95% | Mutant 4% | Subdweller-Mutant Dominant Class ---------------- Mutant | -10/Materials Mutant | -10/Subcaves Resources | -11 -10 -10 ----------- Run | Yrd Mat Sub Matter Collected 893 | 234 378 281 Remotely . | . . . Salvage Created 1187 | 89 683 415 Parts 90 | 7 42 41 Haulers Intercepted 2 | . 2 . Recyclers Shooed 1 | . 1 . Parts Field Recycled . | . . . Retrieved Matter . | . . . Parts Self-Destructed 14 | . . 14 Prevented . | . . . Kills | -11 -10 -10 ------- Run | Yrd Mat Sub Combat Hostiles Destroyed 25 | . 13 12 Melee 1 | . 1 . Guns 18 | . 10 8 Cannons 4 | . . 4 Classes Destroyed 11 | 2 7 2 Worker 5 | . 5 . Tunneler 2 | 2 . . Hauler 2 | . 2 . Recycler 2 | 1 1 . Mechanic 1 | . 1 . Operator 1 | . 1 . Turret 2 | . . 2 Watcher 2 | . 2 . Swarmer 8 | . 6 2 Grunt 7 | . 7 . Subdweller 10 | . . 10 Best Kill Streak 7 | 3 7 2 Combat Bots Only 4 | . 4 2 Max Kills in Single Turn 1 | 1 1 1 Gunslinging . | . . . Exploded . | . . . Melee 1 | . 1 . Uniques/NPCs Destroyed . | . . . Combat | -11 -10 -10 -------- Run | Yrd Mat Sub Hostile Shots Fired 131 | . 54 77 Missed 41 | . 18 23 Damage Taken 1579 | . 408 1171 Core 262 | . 89 173 Absorbed by Shields . | . . . Core Remaining (%) 100 | 100 . . Volleys Fired 153 | 5 62 86 Largest 2 | 2 2 2 Hottest 160 | 80 80 160 Shots Fired 266 | 10 124 132 Gun 184 | 10 124 50 Cannon 82 | . . 82 Launcher . | . . . Special . | . . . Kinetic 55 | . 28 27 Thermal 211 | 10 96 105 Explosive . | . . . Electromagnetic . | . . . Robot Hit Streak 16 | 4 14 16 Robot Miss Streak 3 | 1 3 3 Penetration Max . | . . . Secondary Targets 2 | . 2 . Max Gunslinging Chain 1 | . 1 . Shots Hit Robots 160 | 7 89 64 Core Hits 64 | 4 39 21 Critical Kills 1 | . 1 . Critical Parts Destroyed 1 | . 1 . Critical Strikes 6 | . 2 4 Burn 3 | . . 3 Blast 1 | . . 1 Smash 2 | . 2 . Melee Attacks 38 | . 16 22 Impact 38 | . 16 22 Slashing . | . . . Piercing . | . . . Sneak Attacks 1 | . 1 . Combat Hostiles . | . . . Follow-up Attacks . | . . . Damage Inflicted 2709 | 77 1140 1492 Guns 1539 | 77 920 542 Cannons 950 | . . 950 Explosions . | . . . Melee 216 | . 216 . Ramming 4 | . 4 . Kinetic 663 | . 240 423 Thermal 1826 | 77 680 1069 Explosive . | . . . Electromagnetic . | . . . Impact 216 | . 216 . Slashing . | . . . Piercing . | . . . Highest Corruption . | . . . Average Corruption . | . . . Corruption Purged . | . . . Corruption Blocked . | . . . Overload Shots . | . . . Overflow Damage 69 | . 66 3 Projectiles 3 | . . 3 Explosions . | . . . Melee 66 | . 66 . Knockbacks 3 | . 1 2 Impact 1 | . 1 . Kinetic 2 | . . 2 Secondary . | . . . Self-Inflicted Damage . | . . . Shots . | . . . Rammed 2 | . 2 . Targets Rammed 2 | . 2 . Kicked . | . . . Crushed . | . . . Highest Temperature 280 | 90 211 280 Average Temperature 71 | 47 76 68 Received Heat Transfer 649 | . 171 478 Effects 1 | . 1 . Energy Bleed 1 | . 1 . Siege Activations . | . . . Robots Corrupted 2 | . 2 . Combat Hostiles 2 | . 2 . Parts Fried 2 | . 2 . Impact Corruptions 5 | . 5 . Robots Melted . | . . . Combat Hostiles . | . . . Parts Melted 6 | . 3 3 Heat Transferred 3846 | 175 1525 2146 Parts Sabotaged . | . . . Parts Stolen . | . . . Parts Stripped . | . . . Power Chain Reactions . | . . . Alert | -11 -10 -10 ------- Run | Yrd Mat Sub Peak Influence 288 | 15 288 . Initial 9 | . 9 . Average 61 | 6 65 . Maximum Alert Level 1 | . 1 . Low Security (%) 95 | 100 95 . Level 1 4 | . 4 . Level 2 . | . . . Level 3 . | . . . Level 4 . | . . . Level 5 . | . . . High Security . | . . . Max Security . | . . . Squads Dispatched 2 | . 2 . Investigation 1 | . 1 . Extermination . | . . . Reinforcement 1 | . 1 . Assault . | . . . Garrison . | . . . Intercept . | . . . Searches Triggered . | . . . Construction Impeded . | . . . Haulers Reinforced . | . . . Active Scanning Responses . | . . . Cargo Convoy Interrupts . | . . . Stealth | -11 -10 -10 --------- Run | Yrd Mat Sub Distress Signals 2 | . 2 . Communications Jammed . | . . . Distress Signals . | . . . Times Spotted 39 | . 23 16 Peak Tracking Total 4 | . 4 2 Tactical Retreats 3 | . . 3 Traps | -11 -10 -10 ------- Run | Yrd Mat Sub Traps Triggered 1 | . . 1 Indirectly . | . . . Trap Hack Attempts . | . . . Triggered . | . . . Disarmed . | . . . Reprogrammed . | . . . Reused 1 | . . 1 Traps Extracted . | . . . Installed 1 | . . 1 Triggered . | . . . Most Traps Carried 2 | . . 2 Machines | -11 -10 -10 ---------- Run | Yrd Mat Sub Machines Disabled 2 | . . 2 Max in Single Turn 1 | . . 1 Machines Repaired . | . . . Machines Dismantled . | . . . Machines Sabotaged . | . . . Overloaded Fab Kills . | . . . Hacking | -11 -10 -10 --------- Run | Yrd Mat Sub Machines Accessed 9 | . 7 2 Terminals 6 | . 6 . Fabricators . | . . . Repair Stations . | . . . Recycling Units 1 | . 1 . Scanalyzers . | . . . Garrison Access . | . . . Total Hacks 26 | . 21 5 Successful 13 | . 8 5 Failed 13 | . 13 . Catastrophic 2 | . 2 . Database Lockouts . | . . . Manual 17 | . 17 . Terminals 16 | . 16 . Fabricators . | . . . Repair Stations . | . . . Recycling Units 5 | . 5 . Scanalyzers . | . . . Garrison Access . | . . . Terminal Hacks 5 | . . 5 Record 4 | . . 4 Derelict Proto ID Bank 1 | . . 1 Fabricator Hacks . | . . . Repair Station Hacks . | . . . Recycling Unit Hacks 1 | . 1 . Retrieve Components 1 | . 1 . Scanalyzer . | . . . Garrison Access Hacks . | . . . Unauthorized Hacks 7 | . 7 . Terminals 6 | . 6 . Botnet 1 | . 1 . Skim 5 | . 5 . Fabricators . | . . . Repair Stations . | . . . Recycling Units 1 | . 1 . Tunnel 1 | . 1 . Scanalyzers . | . . . Garrison Access . | . . . Data Cores Recovered . | . . . Used . | . . . Hacking Detections 7 | . 7 . Full Trace Events . | . . . Feedback Events . | . . . Feedback Blocked . | . . . Robot Schematics Acquired . | . . . Robots Built . | . . . Authchips . | . . . Time . | . . . Total Robot Build Rating . | . . . Part Schematics Acquired . | . . . Parts Built . | . . . Authchips . | . . . Time . | . . . Total Part Build Rating . | . . . Parts Repaired . | . . . Time . | . . . Parts Recycled . | . . . Recycled Matter . | . . . Retrieved Matter . | . . . Retrieved Components 9 | . 9 . Parts Scanalyzed . | . . . Part Schematics Acquired . | . . . Parts Damaged . | . . . Bothacking | -11 -10 -10 ------------ Run | Yrd Mat Sub Used RIF Installer . | . . . Robots Hacked . | . . . Non-combat . | . . . Combat . | . . . Robot Hacks Applied . | . . . Relay Couplers Released . | . . . Fabnet Peak Effective % . | . . . Robots Rewired . | . . . Allies Hacked . | . . . Hacks Repelled . | . . . Allies | -11 -10 -10 -------- Run | Yrd Mat Sub Total Allies . | . . . Largest Group . | . . . Highest-Rated Group . | . . . Highest-Rated Ally . | . . . Total Orders . | . . . Ally Attacks . | . . . Total Damage . | . . . Kills . | . . . Allies Corrupted . | . . . Allies Melted . | . . . Intel | -11 -10 -10 ------- Run | Yrd Mat Sub Robot Analysis Total . | . . . Derelict Logs Recovered 1 | . . 1 Drone Launches . | . . . Drone Recoveries . | . . . Exploration | -11 -10 -10 ------------- Run | Yrd Mat Sub Turns Passed 6368 | 144 1911 4313 Spaces Moved 1947 | 74 461 1412 Core 6 | 6 . . Treads 1941 | 68 461 1412 Legs . | . . . Wheels . | . . . Hover . | . . . Flight . | . . . Fastest Speed 50 | 50 160 160 Average Speed 178 | 153 160 185 Slowest Speed 240 | 160 160 240 Overloaded Moves . | . . . Propulsion Burnouts . | . . . Robots Hopped . | . . . Cave-ins Triggered . | . . . Exploration Rate (%) 47 | 5 69 67 Regions Visited 2 Branch Regions 1 Pre-discovered Areas 3 | . 1 2 Known Exits Taken 1 | . 1 . Unknown Exits Taken 1 | 1 . . Scrap Searched 8 | . . 8 Spaces Dug 17 | . 4 13 Terrain Destroyed 24 | . 4 20 Melee 6 | . 4 2 Projectile 18 | . . 18 AOE . | . . . Terrain Rammed . | . . . Walls Destroyed . | . . . Machines Disabled . | . . . Actions | -11 -10 -10 --------- Run | Yrd Mat Sub Total 4515 | 91 1482 2942 Wait 2275 | 2 904 1369 Move 1945 | 73 460 1412 Hop . | . . . Pick Up 30 | 4 16 10 Fast Attach 15 | 7 2 6 Attach 5 | . . 5 Detach 1 | . . 1 Swap 17 | . 9 8 Drop 33 | . 11 22 Fire 153 | 5 62 86 Melee 38 | . 16 22 Ram . | . . . Kick . | . . . Crush 2 | . 2 . Escape Stasis . | . . . Rewire . | . . . Trap 1 | . . 1 Miscellaneous . | . . . Route ------- -11/Scrapyard -10/Materials (discovered 4 exits: *Mat x2 / Min / *Sub) -10/Subcaves (discovered 3 exits: *Mat x2 / *Rec) History --------- Turn | Location | Event 4 | -11/Scrapyard | Discovered new exit (range 15) 145 | -11/Scrapyard | Entered Materials 308 | -10/Materials | Build established: Mutant 612 | -10/Materials | Discovered new exit (range 15) 678 | -10/Materials | Learned location of 2 exits from Mines 745 | -10/Materials | Identified exit to Mines 774 | -10/Materials | Loaded intel: 6 trap records 783 | -10/Materials | Learned location of 2 exits from Subcaves 802 | -10/Materials | Identified exit to Subcaves 802 | -10/Materials | Identified exit to Materials 2056 | -10/Materials | Entered Subcaves 2057 | -10/Subcaves | Identified exit to Recycling 2058 | -10/Subcaves | Identified exit to Materials 2117 | -10/Subcaves | A swath of the cavern ceiling suddenly collapsed 2597 | -10/Subcaves | Learned location of Zion (-6) 2597 | -10/Subcaves | Met a Zionite searching for "candidates" 3065 | -10/Subcaves | Core integrity fell below 50% 3108 | -10/Subcaves | Learned location of Mines (-10) 3128 | -10/Subcaves | Shifting Twisted Machinery released Shrapnel Trap 3145 | -10/Subcaves | Shifting Twisted Machinery released Piercing Trap 3157 | -10/Subcaves | Shifting Twisted Machinery released Battle Cannon 3274 | -10/Subcaves | Visited Clippyterm 3279 | -10/Subcaves | Learned Factory fabricator intel 4720 | -10/Subcaves | Shifting Twisted Machinery released Battle Cannon 5109 | -10/Subcaves | Visited 4L-MR0's lab 5129 | -10/Subcaves | Found Tower Shield 5130 | -10/Subcaves | Attached Tower Shield, gained temporary slots: Power, Propulsion x2, Utility x2, Weapon x2 5321 | -10/Subcaves | Shifting Twisted Machinery released Sub. Power Source 5440 | -10/Subcaves | Shifting Twisted Machinery released Flamer 6368 | -10/Subcaves | Core integrity fell below 20% 6369 | -10/Subcaves | Destroyed by SX-WJ4(R) with Subdweller Machine Gun Last Messages --------------- 05789_ Searching scrap... 05789_ Found Sub. Beam Cannon. 05789_ Found Riot Gun. 05791_ Searching scrap... 05791_ Found Battle Rifle. 05791_ Found 52 Matter. 05813_ Searching scrap... 05813_ Found Flamer. 05813_ Found 67 Matter. 06104_ DS-X3M(u) tweaks Twisted Machinery. 06346_ Dropped Piercing Trap. 06346_ Installed Piercing Trap. 06353_ SX-WJ4(R) knocked back. 06365_ Tower Shield destroyed. 06367_ Temporary Power slot lost. 06367_ Temporary Propulsion slot lost. 06367_ Temporary Utility slot lost. 06367_ Temporary Weapon slot lost. 06367_ Destroyed Scrap Shield. 06367_ Lgt. Treads destroyed. Map ----- +----------------------------------------------------+ | ????????????????## """" #### ##???????????? | | ?????????????????## "" "" #?## #???????????? | | ??????????????????## ##"" #??# #???????????? | | ???????????????????##?# ##### #### #???????????? | | ??????????????????????##????## ## ##??????????? | | ?????????????????????????###### ##?????????? | | ???????????????????????###""### #?????????? | | ???????????????????????# ""## ###?????????? | | ???????????????????????# ## ##???????????? | | ????????????????????????# ######???????? | | ????????????????????????# #???????? | | ?????????????????? ????# #???????? | | ????????????????? # ??## ## ####???????? | | ?????????????????# ?## #### ###??????????? | | ?????????????????# ?# ##??## ###??????????? | | ?????????????????? #### ##????## #??????????? | | ?????????????????? #####??????# #??????????? | | ??????????????????# #???###### #??????????? | | ?????????????????## ???# #??????????? | | ?????????????????? ????## #??????????? | | ??????????????????? ?????## #??????????? | | ???????????????????? ??????## #??????????? | | ????????????????????# ???????## ##??????????? | | ????????????????????# #????????# ##???????????? | | ????????????????????# ########## #????????????? | | ????????????????????# ^#@# # ##????????????? | | ????????????????????## / #######???????? | | ?????????????????????##RR """" ##?###??? | | ?????????????????????# # # # # ## " ###"#### | | ??????????????????? ############## " ""#""# | | ?????????????????# ?????????????###### | | ?????????????????# #???????????????????# | | ?????????????????# #???????????????????## # # | | ?????????????????##????????????????????# # | | ???????????????????????????????????????# # | | ??????????????????????????????????????# # | | ????????????????????????????????????? ### # | | ??????????????????????????????????? """" ##?# # | | ?????????????????????????????????? """"##?? | | ????????????????????????????????? """##??? # | | ?????????????????????????????????" """????# # | | ????????????????????????????????#### ??? ????# | | ???????????????????????????????????#?????????# | | ????????????????????????????????????????????? | | ?????????????????????????????????????????????### | | ????????????????????????????????????????????????#? | | ?????????????????????????????????????????????????? | | ?????????????????????????????????????????????????? | | ?????????????????????????????????????????????????? | | ?????????????????????????????????????????????????? | +----------------------------------------------------+ Best States ------------- Heat Dissipation 25 Energy Generation 10 Energy Capacity 250 Matter Stores 300 Matter Capacity 300 Sight Range 16 Terrain Scan Density 10 Armor Coverage 2800 Evasion (%) 40 Recoil Reduction 2 Item Schematics ----------------- None Robot Schematics ------------------ None Fabricated ------------ Nothing Alien Tech Used ----------------- None Achievements -------------- None Challenges ------------ None Game ------ Seed ArcHypervelocityTorch Manual? 0 Play Time 00:32:15 Cumulative 422.4 hours Start 2024.12.19 @ 17:20:57 End 2024.12.19 @ 18:02:09 Sessions 1 Manual Loads 0 Difficulty Rogue Special Mode None Game No. 195 Rogue 195 Adventurer 0 Explorer 0 Win Type - Total 15 Types 9/1/5/0/0/0/0/0/0 Lore% 87 Gallery% 90 Achievement% 76 Wizard Run 0 Options --------- Layout 0 ASCII 0 Keyboard 1 Movement Numpad Keybinds 0 Fullscreen 2 Font 12/Smallcaps Map View 83x54 Zoom Use 0% Tactical HUD 1 Map Filters NONE Filters NONE Steam 1 RUN: 61d0a13e-400f-4b62-93b9-186e6be82990